[Event "FIDE WY-U16 Olympiad 2022"]
[Site "Nakhchivan"]
[Date "2022.10.02"]
[Round "1.30"]
[White "Nwedo, Khodani"]
[Black "Sakline Mostafa, Sajid"]
[Result "0-1"]
[ECO "E71"]
[WhiteElo "1356"]
[BlackElo "2001"]
[Annotator "TA"]
[PlyCount "118"]
[EventDate "2022.10.02"]
[EventType "team-tourn"]
[EventCountry "AZE"]
[SourceTitle "playchess.com"]
[Source "ChessBase"]
[SourceQuality "1"]
[WhiteTeam "South Africa"]
[BlackTeam "Bangladesh"]
[WhiteTeamCountry "RSA"]
[BlackTeamCountry "BAN"]
[TimeControl "40/5400+30:1800+30"]

{[%evp 13,118,43,34,30,34,28,80,40,60,35,43,35,43,27,50,35,35,11,10,22,11,0,32,-5,-7,-16,0,0,0,-8,22,-15,24,18,39,-10,22,5,5,10,20,-32,-32,-32,-32,-32,-32,-68,-79,-60,-64,-399,-269,-272,-234,-302,-293,-530,-520,-457,-66,-77,-75,-149,-112,-118,-101,-322,-14,-1215,-181,-1156,-263,-579,-377,-1020,-1043,-987,-910,-864,-868,-988,-966,-1183,-1143,-1347,-1285,-1749,-1720,-1633,-1668,-1351,-1089,-1924,-2018,-12837,-12836,-12835,-12833,-12840,-12841,-29989,-29990,-29990,-12844,-29992,-29993]} 1. d4 Nf6 2. c4 g6 3. Nc3 Bg7 {[%emt 0:00:28]} 4. e4 {[%emt 0:00:39]} d6 {[%emt 0:00:06]} 5. h3 {[%emt 0:00:12]} O-O {[%emt 0:01:00]} 6. Be3 {[%emt 0:00:10]} e5 {[%emt 0:00:34]} 7. d5 {[%emt 0:00:09]} Nbd7 {[%emt 0:01:22]} 8. g4 {[%emt 0:00:45] outshines the older 8.Nf3. E71: King's Indian: 4 e4 d6 5 h3.} Nc5 {[%emt 0:02:06]} 9. Qc2 {[%emt 0:03:07]} a5 {[%emt 0:03:35]} (9... c6 $11) 10. Nge2 {[%emt 0:00:33] White is better.} Ne8 {[%emt 0:08:13]} 11. Ng3 {[%emt 0:01:27]} Bf6 {[%emt 0:05:05]} 12. Qd2 {[%emt 0:06:27]} Bh4 {[%emt 0:02:50]} 13. Rg1 {[%emt 0:07:50]} Ng7 {[%emt 0:04:55] [#]} 14. Bh6 $146 {[%emt 0:06:23]} ({Predecessor:} 14. Be2 Bd7 15. Bh6 Re8 16. Nf5 Nxf5 17. gxf5 Kh8 18. fxg6 fxg6 19. Bg4 Qf6 20. Be3 {1-0 (69) Xie,F (2166)-Milligan,H (1956) Christchurch 2022}) 14... f6 {[%emt 0:02:53]} 15. Be2 {[%emt 0:36:01]} Bg5 {[%emt 0:14:33]} 16. Bxg5 {[%emt 0:00:26]} fxg5 {[%emt 0:00:01]} 17. f3 {[%emt 0:03:50]} Qf6 {[%emt 0:04:04]} 18. Kf2 {[%emt 0:04:40]} Bd7 {[%emt 0:02:54]} 19. Kg2 {[%emt 0:04:31]} Kf7 {[%emt 0:05:25]} 20. b3 {[%emt 0:02:35]} Ke7 {[%emt 0:03:12]} 21. Rab1 {[%emt 0:10:04]} b6 {[%emt 0:06:42]} 22. Qe3 {[%emt 0:03:24]} Rg8 {[%emt 0:05:13]} 23. Bd1 {[%emt 0:01:34]} Qf4 {[%emt 0:08:02]} 24. Qxf4 {[%emt 0:01:08]} (24. Qe2 $14) 24... exf4 {[%emt 0:00:35]} 25. Nge2 {[%emt 0:00:35]} Nd3 $1 {[%emt 0:00:37]} 26. Bc2 {[%emt 0:00:22]} Ne5 {[%emt 0:00:03][%cal Oa5a4]} 27. Nd4 {[%emt 0:01:14]} ({Better is} 27. Nc1 $11) 27... Ne8 $15 {[%emt 0:01:46]} 28. Kf2 {[%emt 0:01:59]} Nf6 {[%emt 0:01:25]} 29. Rg2 {[%emt 0:00:57]} h5 {[%emt 0:02:31]} 30. Rbg1 {[%emt 0:00:45]} hxg4 {[%emt 0:00:54]} 31. hxg4 {[%emt 0:00:22]} Rh8 {[%emt 0:00:07][%cal Oa5a4]} 32. Ndb5 $2 {[%emt 0:00:22][%mdl 8192]} ({White should play} 32. Ncb5 $15) 32... Rh3 {[%emt 0:01:10]} 33. Bd1 {[%emt 0:00:40]} Rah8 {[%emt 0:01:16]} 34. Be2 {[%emt 0:00:50]} R8h4 {[%emt 0:02:03][%cal Od7g4]} 35. a3 $2 {[%emt 0:00:32]} (35. Rf1 {is the only way for White.}) 35... Bxb5 $19 {[%emt 0:04:44]} 36. Nxb5 {[%emt 0:00:26] [#]} Kd8 $2 {[%emt 0:00:22]} (36... Nxe4+ $1 $19 {[%mdl 512]} 37. fxe4 f3) 37. Nd4 $15 {[%emt 0:00:16]} Kd7 {[%emt 0:02:52]} 38. b4 {[%emt 0:02:10]} (38. Rd1 $142) 38... Rh8 {[%emt 0:03:27][%cal Of6e4] Black is much more active.} 39. bxa5 {[%emt 0:00:44]} bxa5 {[%emt 0:00:28][%cal Of6e4]} 40. Rb1 $2 {[%emt 0:01:08] [#]} (40. Rc1 $17 {was called for.}) 40... Rh1 $2 {[%emt 0:00:57]} (40... Nexg4+ $1 $19 {[%mdl 512]} 41. fxg4 Nxe4+ 42. Ke1 Rxa3) 41. Rb7 $2 {[%emt 0:30:48][%mdl 8192] [#]} (41. Rxh1 $11 Rxh1 42. Rg1) 41... Ra1 $2 {[%emt 0:31:25]} (41... Nexg4+ $1 {[%mdl 512]} 42. Rxg4 Nxg4+ 43. fxg4 R8h2+ 44. Kf3 Rg1 45. Rxc7+ Kxc7 46. Ne6+ Kd7 47. Nxg5 Re1) 42. Nb5 $2 {[%emt 0:00:16] [#]} (42. Ne6 Ne8 43. c5 (43. Nxg5 $2 Ng7 $19)) 42... Ne8 $2 {[%emt 0:00:37] Pair of Knights!} (42... Nexg4+ $1 {[%mdl 512]} 43. fxg4 Nxe4+ 44. Kf3 Nd2+ 45. Kf2 Rh3 46. Rxc7+ Kd8 47. Nxd6 Kxc7) 43. Ra7 $2 {[%emt 0:00:00]} (43. Nd4) 43... Rhh1 $19 {[%emt 0:00:00] Strongly threatening ...Ra2.} 44. Rxa5 $2 {[%emt 0:00:00]} (44. Nd4 Ra2 45. Rg1 Rh2+ 46. Rg2) 44... Ra2 {[%emt 0:00:00][%cal Re5d3,Ba1a2,Ba2e2,Be2d2,Bd2d4][%mdl 32]} 45. Rg1 {[%emt 0:00:00]} Rxg1 {[%emt 0:00:00][%mdl 64] Deflection} 46. Kxg1 {[%emt 0:00:00]} Rxe2 {[%emt 0:00:00]} 47. Kf1 {[%emt 0:00:00]} Rd2 {[%emt 0:00:00] ...Nf6 is the strong threat.} 48. Ra8 {[%emt 0:00:00]} Nxf3 {[%emt 0:00:00]} 49. Na7 {[%emt 0:00:00]} Ne5 {[%emt 0:00:00]} ({Not} 49... Nf6 50. Nc6 Nxd5 51. exd5 Nh2+ 52. Kg1 Nf3+ 53. Kf1 Nh2+ 54. Kg1 Nf3+ 55. Kf1 $11) 50. Nc6 {[%emt 0:00:00]} Nxc6 {[%emt 0:00:00]} 51. dxc6+ {[%emt 0:00:00][%mdl 4096] Endgame KRN-KR} Ke7 {[%emt 0:00:00] And now ...Nf6 would win.} 52. a4 {[%emt 0:00:00]} Rd4 {[%emt 0:00:00]} 53. a5 {[%emt 0:00:00]} Rxc4 {[%emt 0:00:00]} 54. a6 {[%emt 0:00:00]} Rxc6 {[%emt 0:00:00]} 55. a7 {[%emt 0:00:00]} Ra6 {[%emt 0:00:00]} 56. Ke2 {[%emt 0:00:00]} Nf6 {[%emt 0:00:00][%csl LRe4,LRg4] ( -> ...Ra2+)} 57. Kf3 {[%emt 0:00:00]} Ra3+ {[%emt 0:00:00]} 58. Ke2 {[%emt 0:00:00]} Nxg4 {[%emt 0:00:00]} (58... f3+ $142 59. Kd2 f2 60. Ke2 Ra2+ 61. Kf1 Nxg4 62. Re8+ Kxe8 63. Kg2 Ne3+ 64. Kf3 f1=Q+ 65. Kxe3 Qf2+ 66. Kd3 Ra3+ 67. Kc4 Qc5#) 59. Kf1 {[%emt 0:00:00]} f3 {[%emt 0:00:00] Weighted Error Value: White=1.06/Black=0.55} 0-1

[Event "FIDE WY-U16 Olympiad 2022"]
[Site "Nakhchivan"]
[Date "2022.10.02"]
[Round "1.31"]
[White "Sajidul, Haque"]
[Black "Boshoma, Chisomo"]
[Result "1-0"]
[ECO "A45"]
[WhiteElo "1918"]
[BlackElo "1466"]
[Annotator "TA"]
[PlyCount "109"]
[EventDate "2022.10.02"]
[EventType "team-tourn"]
[EventCountry "AZE"]
[SourceTitle "playchess.com"]
[Source "ChessBase"]
[SourceQuality "1"]
[WhiteTeam "Bangladesh"]
[BlackTeam "South Africa"]
[WhiteTeamCountry "BAN"]
[BlackTeamCountry "RSA"]
[TimeControl "40/5400+30:1800+30"]

{[%evp 9,108,12,18,3,11,10,7,5,22,-3,8,9,22,0,164,169,154,179,155,147,183,116,118,115,126,119,207,216,193,202,355,356,354,355,535,533,535,534,530,528,512,493,754,738,756,746,749,747,738,696,710,704,739,695,755,748,702,692,767,730,1255,1240,1296,1122,1245,1238,11163,5497,5843,5891,29983,29984,29984,29984,29986,29987,29988,29986,29987,29988,29988,29987,29987,29988,29988,29989,29987,29988,29988,29989,29990,29989,29990,29991,29991,29991,29991,29990,29998,29999,29999]} 1. d4 {[%emt 0:00:03]} Nf6 {[%emt 0:00:09]} 2. Bf4 {[%emt 0:00:25]} e6 {[%emt 0:00:06]} 3. e3 {[%emt 0:00:24]} d5 {[%emt 0:00:22]} 4. Nf3 {[%emt 0:01:16]} Be7 {[%emt 0:00:59]} 5. Bd3 {[%emt 0:01:51]} O-O {[%emt 0:00:31]} 6. O-O {[%emt 0:00:51] D02: 1 d4 d5 2 Nf3 sidelines, including 2...Nf6 3 g3 and 2...Nf6 3 Bf4.} Nbd7 {[%emt 0:00:11]} 7. Nbd2 {[%emt 0:00:26]} b6 {[%emt 0:00:51]} 8. Rc1 {[%emt 0:01:35] The position is equal.} Bb7 {[%emt 0:00:36]} 9. Re1 {[%emt 0:03:31] [#]} Ne4 $146 {[%emt 0:01:40]} ({Predecessor:} 9... c5 10. c3 Nh5 11. Ne5 Nxf4 12. exf4 Nf6 13. Re3 Qd6 14. Rh3 g6 15. Qf3 cxd4 16. cxd4 {0-1 (33) Ibragimov,M (2175)-Iskhakov,A (1815) Sterlitamak 2010}) 10. c4 {[%emt 0:01:53]} Rc8 {[%emt 0:00:07]} 11. Qc2 {[%emt 0:01:57]} f5 $2 {[%emt 0:04:20]} (11... Ndf6 $1 $11 {and Black has nothing to worry.}) 12. cxd5 $18 {[%emt 0:02:33]} exd5 {[%emt 0:02:18]} 13. Bxc7 {[%emt 0:01:05]} Qe8 {[%emt 0:02:52] And now ...Bd6 would win.} 14. Qb3 {[%emt 0:06:24] Hoping for Nxe4.} Ndf6 {[%emt 0:07:46]} 15. Nxe4 {[%emt 0:08:14]} ({Better is} 15. Bb5 $18 Qf7 16. Nxe4 fxe4 17. Ng5) 15... fxe4 $16 {[%emt 0:02:11]} 16. Bb5 {[%emt 0:00:12] White is more active.} Qh5 {[%emt 0:00:53] [#]} 17. Ne5 {[%emt 0:00:41]} Ng4 {[%emt 0:05:40]} (17... Ne8 $16 {keeps fighting.}) 18. Nxg4 $18 {[%emt 0:02:02]} Qxg4 {[%emt 0:00:34]} 19. Bg3 {[%emt 0:04:48] aiming for Qa4.} Bh4 $2 {[%emt 0:08:51]} (19... Rxc1 20. Rxc1 Rc8) 20. Rxc8 {[%emt 0:01:55]} Rxc8 {[%emt 0:00:33]} 21. Qa4 {[%emt 0:01:47]} a5 {[%emt 0:08:48]} (21... Bxg3 $142 22. hxg3 Qg6 23. Qxa7 Ba8) 22. Bd7 {[%emt 0:00:25]} Qe2 {[%emt 0:04:11][%cal Re2e1]} 23. Qd1 {[%emt 0:01:28]} (23. Rxe2 $2 {gets mated.} Rc1+) 23... Qxd1 {[%emt 0:01:16]} 24. Rxd1 {[%emt 0:00:02]} Bxg3 {[%emt 0:01:48]} 25. Bxc8 {[%emt 0:00:22]} ({Worse is} 25. fxg3 Rc2 $14) ({Less strong is} 25. hxg3 Rc7 $14) 25... Bxf2+ {[%emt 0:00:19]} (25... Bxc8 $142 26. hxg3 Kf8) 26. Kxf2 {[%emt 0:00:14]} Bxc8 {[%emt 0:00:04][%mdl 4096] Endgame KR-KB} 27. Rc1 {[%emt 0:00:03]} Bd7 {[%emt 0:00:44]} 28. Rc7 {[%emt 0:00:04]} Be8 {[%emt 0:00:05]} 29. Rc8 {[%emt 0:00:58]} Kf7 {[%emt 0:00:27]} 30. Ra8 {[%emt 0:00:11]} a4 {[%emt 0:00:36]} 31. Rd8 {[%emt 0:00:26]} Ke7 {[%emt 0:04:08]} 32. Rxd5 {[%emt 0:00:05]} Bc6 {[%emt 0:00:03]} 33. Re5+ {[%emt 0:00:20]} Kd6 {[%emt 0:00:15]} 34. a3 {[%emt 0:00:42]} h6 {[%emt 0:00:21]} 35. h4 {[%emt 0:00:07]} g6 {[%emt 0:00:29]} 36. Kg3 {[%emt 0:00:12] Strongly threatening h5.} b5 {[%emt 0:04:24]} 37. Kf4 {[%emt 0:00:09] Black must now prevent h5.} Kd7 {[%emt 0:01:40]} 38. d5 {[%emt 0:00:16]} Bb7 {[%emt 0:00:07]} 39. Kxe4 {[%emt 0:00:09] White threatens Re6 and mate.} h5 {[%emt 0:00:42]} 40. Re6 {[%emt 0:02:32] White mates.} Bc8 {[%emt 0:00:37]} 41. Rxg6 {[%emt 0:30:12]} Ke7 {[%emt 0:30:17]} 42. Ke5 {[%emt 0:00:34]} Kf7 {[%emt 0:00:19]} 43. Rf6+ {[%emt 0:00:10]} Ke7 {[%emt 0:00:18]} 44. d6+ {[%emt 0:00:09]} Ke8 {[%emt 0:00:06]} 45. Re6+ {[%emt 0:00:12]} Kd8 {[%emt 0:00:35]} 46. Re7 {[%emt 0:00:16]} Bg4 {[%emt 0:00:48]} 47. Kd5 {[%emt 0:00:18]} Bd7 {[%emt 0:00:41] [#]} 48. Rxd7+ $1 {[%emt 0:00:07]} Kxd7 {[%emt 0:00:08] KP-KP} 49. e4 {[%emt 0:00:05][%cal Be3e4,Be4e5,Be5e6,Be6e7][%mdl 32]} Kd8 {[%emt 0:00:11]} 50. e5 {[%emt 0:00:08]} Kd7 {[%emt 0:00:08]} 51. e6+ {[%emt 0:00:08]} Kd8 {[%emt 0:00:06]} 52. Kc6 {[%emt 0:00:14]} b4 {[%emt 0:00:04]} 53. d7 {[%emt 0:00:23]} bxa3 {[%emt 0:00:54]} 54. Kd6 {[%emt 0:00:10][%csl Gd6][%cal Re6e7]} axb2 {[%emt 0:00:18]} 55. e7# {[%emt 0:00:03] Weighted Error Value: White=0.08 (flawless) /Black=0.61} 1-0

[Event "FIDE WY-U16 Olympiad 2022"]
[Site "Nakhchivan"]
[Date "2022.10.02"]
[Round "1.32"]
[White "Price, Rowan Daelen"]
[Black "Omnia Binta Yusuf, Lubaba"]
[Result "1-0"]
[ECO "B12"]
[WhiteElo "1329"]
[BlackElo "1642"]
[Annotator "NA RC COMBH"]
[PlyCount "67"]
[EventDate "2022.10.02"]
[EventType "team-tourn"]
[EventCountry "AZE"]
[SourceTitle "playchess.com"]
[Source "ChessBase"]
[SourceQuality "1"]
[WhiteTeam "South Africa"]
[BlackTeam "Bangladesh"]
[WhiteTeamCountry "RSA"]
[BlackTeamCountry "BAN"]
[TimeControl "40/5400+30:1800+30"]

1. e4 {[%emt 0:00:05]} c6 {[%emt 0:00:08]} 2. d4 {[%emt 0:00:19]} d5 {[%emt 0:00:09]} 3. e5 {[%emt 0:00:23]} Bf5 {[%emt 0:00:52]} 4. Nc3 {[%emt 0:00:42]} e6 {[%emt 0:00:30]} 5. g4 {[%emt 0:01:26]} Bg6 {[%emt 0:00:21]} 6. Nge2 {[%emt 0:01:14]} h6 {[%emt 0:04:14]} 7. h4 {[%emt 0:06:17]} c5 {[%emt 0:04:13]} 8. Be3 {[%emt 0:05:22]} Nc6 {[%emt 0:01:21]} 9. Nf4 {[%emt 0:09:13]} Bh7 {[%emt 0:03:05]} 10. Qd2 {[%emt 0:05:54]} cxd4 {[%emt 0:02:19]} 11. Bxd4 {[%emt 0:05:30]} Nxd4 {[%emt 0:01:24]} 12. Qxd4 {[%emt 0:00:21]} Ne7 {[%emt 0:00:41]} 13. Qa4+ {[%emt 0:06:22]} Nc6 {[%emt 0:00:42]} 14. Bb5 {[%emt 0:01:46]} Qc7 {[%emt 0:03:30]} 15. O-O-O {[%emt 0:04:07]} Be7 {[%emt 0:01:36]} 16. Nfxd5 {[%emt 0:14:32]} exd5 {[%emt 0:03:18]} 17. Nxd5 {[%emt 0:00:12]} Qc8 {[%emt 0:04:34]} 18. Nxe7 {[%emt 0:05:43]} Kxe7 {[%emt 0:00:50]} 19. Qa3+ {[%emt 0:04:00]} Ke8 {[%emt 0:00:29]} 20. Rd6 {[%emt 0:02:25]} a6 {[%emt 0:11:37]} 21. Bxc6+ {[%emt 0:01:49]} bxc6 {[%emt 0:00:23]} 22. e6 {[%emt 0:05:23]} fxe6 {[%emt 0:03:04]} 23. Re1 {[%emt 0:01:42]} Bg8 {[%emt 0:07:54]} 24. Qc3 {[%emt 0:02:17]} Qc7 {[%emt 0:04:18]} 25. Rxc6 {[%emt 0:02:24]} Qf4+ {[%emt 0:02:10]} 26. Kb1 {[%emt 0:00:23]} Qxg4 {[%emt 0:12:59]} 27. Rc7 {[%emt 0:02:03]} Qa4 {[%emt 0:18:41]} 28. Qc5 {[%emt 0:02:31]} Qd7 {[%emt 0:00:48]} 29. Rxd7 {[%emt 0:00:11]} Kxd7 {[%emt 0:00:04]} 30. Rd1+ {[%emt 0:00:12]} Ke8 {[%emt 0:01:52]} 31. Qc6+ {[%emt 0:00:11]} Ke7 {[%emt 0:00:23]} 32. Rd7+ {[%emt 0:00:14]} Kf6 {[%emt 0:00:33]} 33. Qxa8 {[%emt 0:00:21]} e5 {[%emt 0:04:56]} 34. Qf8+ {[%emt 0:01:02]} 1-0

[Event "FIDE WY-U16 Olympiad 2022"]
[Site "Nakhchivan"]
[Date "2022.10.02"]
[Round "1.33"]
[White "Abdel Raouf, Zyad"]
[Black "Springis, Jevgenijs"]
[Result "0-1"]
[ECO "B90"]
[WhiteElo "1609"]
[BlackElo "2057"]
[Annotator "TA"]
[PlyCount "82"]
[EventDate "2022.10.02"]
[EventType "team-tourn"]
[EventCountry "AZE"]
[SourceTitle "playchess.com"]
[Source "ChessBase"]
[SourceQuality "1"]
[WhiteTeam "Egypt"]
[BlackTeam "Latvia"]
[WhiteTeamCountry "EGY"]
[BlackTeamCountry "LAT"]
[TimeControl "40/5400+30:1800+30"]

{[%evp 18,82,22,0,31,-7,0,-54,-10,-10,-14,-42,-36,-70,21,-60,-4,-54,-34,-86,-57,-67,-34,-63,-63,-65,-20,-44,33,38,35,84,81,-18,0,0,0,0,114,0,0,0,0,0,389,0,0,-215,-206,-272,-278,-281,-281,-366,-365,-358,-354,-324,-210,-227,-212,-401,-375,-670,-670,-1167,-1083]} 1. e4 {[%emt 0:00:03]} c5 {[%emt 0:00:09]} 2. Nf3 {[%emt 0:00:11]} d6 {[%emt 0:00:10]} 3. d4 {[%emt 0:00:26]} cxd4 {[%emt 0:00:07]} 4. Nxd4 {[%emt 0:00:05]} Nf6 {[%emt 0:00:07]} 5. Nc3 {[%emt 0:00:57]} a6 {[%emt 0:00:07]} 6. f3 {[%emt 0:00:42]} e5 {[%emt 0:00:20]} 7. Nb3 {[%emt 0:00:23]} Be6 {[%emt 0:00:19]} 8. Be3 {[%emt 0:01:04]} h5 {[%emt 0:00:30]} 9. Qd2 {[%emt 0:07:45]} Nbd7 {[%emt 0:01:13]} 10. O-O-O b5 {[%emt 0:01:04][%cal Bb7b5,Bb5b4][%mdl 32] B90: Sicilian Najdorf: Unusual White 6th moves, 6 Be3 Ng4 and 6 Be3 e5.} 11. h4 {[%emt 0:19:21]} Qc7 {[%emt 0:05:43] [#]} 12. Qf2 $146 {[%emt 0:18:16]} ({White should play} 12. Kb1 $11) ({Predecessor:} 12. Kb1 Nb6 13. Qf2 Nc4 14. Bxc4 bxc4 15. Bb6 Qb8 16. Nd2 Nd7 17. Be3 Qb4 18. a3 {1-0 (51) Salido Polo,V (1835)-Navarro Lopez Menchero,D (2079) Padron 2008}) 12... b4 {[%emt 0:05:05] Black is slightly better.} 13. Nd5 {[%emt 0:07:54]} Bxd5 {[%emt 0:01:52]} 14. exd5 {[%emt 0:00:09]} Be7 {[%emt 0:02:58]} 15. Rg1 {[%emt 0:05:19]} Bd8 {[%emt 0:20:33]} (15... a5 $1 $15 16. Bb5 a4) 16. Be2 {[%emt 0:13:41]} (16. g4 $11) 16... Qb7 {[%emt 0:04:07]} (16... Nb6 $15) 17. Bc4 {[%emt 0:01:43]} ({Better is} 17. Nd2 $11) 17... a5 {[%emt 0:05:41][%cal Ba6a5,Ba5a4][%mdl 32]} 18. Qe2 {[%emt 0:01:34]} (18. Nd2 $15) 18... a4 {[%emt 0:00:54]} 19. Nd2 {[%emt 0:01:07]} Ra5 {[%emt 0:03:10] Against Bb5} 20. Ne4 {[%emt 0:01:21]} Nxe4 {[%emt 0:03:27]} 21. fxe4 {[%emt 0:00:02]} Nf6 {[%emt 0:01:28] Against g4} (21... Bb6 $5 {[%cal Rb6e3]}) 22. Bg5 {[%emt 0:02:31][%cal Be3g5,Bg5f6,Bf6g7][%mdl 32]} Bb6 {[%emt 0:14:02]} (22... Ng4 $15) 23. Bxf6 $14 {[%emt 0:07:54]} Bxg1 {[%emt 0:02:50]} 24. Bxg7 {[%emt 0:00:07]} Rh7 {[%emt 0:00:38]} 25. Rxg1 {[%emt 0:00:25]} ({White should try} 25. Bxe5 $1 $16 dxe5 26. Rxg1) 25... Qb6 {[%emt 0:04:15]} 26. Rf1 {[%emt 0:01:13]} Rxg7 {[%emt 0:15:57]} 27. Qxh5 {[%emt 0:00:15] [#] Threatens to win with Qh8+.} Qe3+ {[%emt 0:01:29]} (27... Kf8 $1 $11) 28. Kd1 {[%emt 0:03:15]} ({White has to play} 28. Kb1 $16 {And now Qh8+ would win.} Qg3 29. Qh6) 28... Ke7 $11 {[%emt 0:03:36]} (28... Rxg2 {gets mated.} 29. Qxf7+ Kd8 30. Qf8+ Kc7 31. Rf7+ Kb6 32. Qxd6#) (28... Qd4+ $2 29. Bd3 Kf8 30. Qh8+ Rg8 31. Qh6+ (31. Qf6 Ra7 $16) 31... Rg7 32. Qxd6+ Kg8 33. Qd8+ Kh7 34. g4 $18 (34. Qxa5 a3 $11)) 29. Qh8 {[%emt 0:01:48]} Qg3 {[%emt 0:01:24]} 30. Qb8 {[%emt 0:01:12]} Qg4+ $2 {[%emt 0:00:30][%mdl 8192] [#]} (30... Rc5 $1 $11) 31. Kc1 $2 {[%emt 0:01:17]} (31. Be2 $1 $18 {[%cal Re2g4]} Qd7 32. Qh8 (32. Qxb4 Rc5 $16) 32... Rxg2 33. Qh7) 31... Rc5 {[%emt 0:00:53]} 32. Bb5 {[%emt 0:00:52]} (32. Bd3 $11) 32... Qc8 $19 {[%emt 0:00:19] Chess con chili.} 33. Qxc8 {[%emt 0:00:45]} Rxc8 {[%emt 0:00:02][%mdl 4096] Endgame KRR-KRB} 34. Rg1 {[%emt 0:02:57]} Rh8 {[%emt 0:01:10]} 35. Be2 {[%emt 0:00:45]} Rxh4 {[%emt 0:00:18]} 36. Bf3 {[%emt 0:00:03]} Rg3 {[%emt 0:01:20]} 37. Kd2 {[%emt 0:00:17]} Rh8 {[%emt 0:00:18][%cal Bh4h8,Bh8b8,Bb8b4,Bb4e4,Be4e3][%mdl 32]} 38. c3 {[%emt 0:00:45]} Rb8 {[%emt 0:00:37]} 39. cxb4 $2 {[%emt 0:00:41]} (39. b3 {was necessary.}) 39... Rxb4 {[%emt 0:00:02]} 40. Kc3 {[%emt 0:00:17]} (40. Kc2) 40... Rxe4 {[%emt 0:00:18] Hoping for ...Re3+.} 41. b3 {[%emt 0:30:30]} Re3+ {[%emt 0:30:07] Weighted Error Value: White=0.89/Black=0.40} 0-1

[Event "FIDE WY-U16 Olympiad 2022"]
[Site "Nakhchivan"]
[Date "2022.10.02"]
[Round "1.34"]
[White "Adamovics, Aleksejs"]
[Black "Fahmi, Adham"]
[Result "1-0"]
[ECO "D10"]
[WhiteElo "2037"]
[BlackElo "1288"]
[Annotator "TA"]
[PlyCount "65"]
[EventDate "2022.10.02"]
[EventType "team-tourn"]
[EventCountry "AZE"]
[SourceTitle "playchess.com"]
[Source "ChessBase"]
[SourceQuality "1"]
[WhiteTeam "Latvia"]
[BlackTeam "Egypt"]
[WhiteTeamCountry "LAT"]
[BlackTeamCountry "EGY"]
[TimeControl "40/5400+30:1800+30"]

{[%evp 9,64,72,116,102,95,110,97,98,127,118,172,96,89,86,67,94,75,79,87,54,128,129,127,123,131,138,262,268,239,258,279,163,156,158,425,425,412,414,470,461,486,471,474,469,590,688,682,687,691,681,568,559,29994,29995,29997,29998,29999]} 1. d4 {[%emt 0:00:04]} d5 {[%emt 0:00:05]} 2. c4 {[%emt 0:00:10]} c6 {[%emt 0:00:08]} 3. Nc3 {[%emt 0:00:18]} Nf6 {[%emt 0:00:09]} 4. cxd5 {[%emt 0:00:32]} Nxd5 {[%emt 0:00:46]} 5. e4 {[%emt 0:00:59]} Nf6 {[%emt 0:01:31][%cal Oe7e5]} 6. Be2 {[%emt 0:03:09] D06: Queen's Gambit: Symmetrical and Baltic Defences.} Nbd7 {[%emt 0:01:58]} 7. Nf3 {[%emt 0:01:11]} e6 {[%emt 0:02:13]} 8. O-O {[%emt 0:00:27] [#] White is better.} Bb4 $146 {[%emt 0:01:07]} ({Predecessor:} 8... Be7 9. Bg5 h6 10. Bh4 g5 11. Bg3 Nh5 12. Be5 Nxe5 13. Nxe5 Nf6 14. Bh5 Nxh5 15. Qxh5 {1-0 (37) Gayan Carceller,M (1878)-Arteaga,F (1630) Spain 2009}) 9. Qd3 {[%emt 0:04:28]} Qe7 {[%emt 0:02:29]} (9... Be7 $16 {keeps fighting.}) 10. h3 {[%emt 0:04:40]} ({White should try} 10. e5 $18) 10... e5 $16 {[%emt 0:04:51]} 11. dxe5 {[%emt 0:07:45]} Nxe5 {[%emt 0:05:36]} 12. Nxe5 {[%emt 0:01:03]} Qxe5 {[%emt 0:00:45]} 13. f4 {[%emt 0:03:26]} Qe7 {[%emt 0:04:48]} 14. Bf3 {[%emt 0:04:27]} Bxc3 {[%emt 0:03:50]} ({Better is} 14... O-O $14) 15. Qxc3 {[%emt 0:02:12] Strongly threatening Be3.} O-O {[%emt 0:06:39]} 16. Re1 {[%emt 0:01:44]} Re8 {[%emt 0:01:14][%cal Oc8f5]} 17. Be3 $36 {[%emt 0:08:35][%mdl 2048] Black is under strong pressure.} Bd7 {[%emt 0:13:54]} (17... Nxe4 $2 18. Bxe4 (18. Bc5 Nxc3 19. Rxe7 Rxe7 $15) 18... Be6 19. Bd4 $18) (17... Qc7 $16) 18. Bc5 $18 {[%emt 0:01:17]} Qd8 {[%emt 0:01:01]} 19. Rad1 {[%emt 0:01:43]} Rc8 {[%emt 0:06:08]} 20. Rd2 {[%emt 0:08:20]} (20. f5 $142) 20... Nd5 {[%emt 0:05:39]} 21. Qc1 {[%emt 0:03:11] White is more active.} Qh4 $2 {[%emt 0:04:08] [#] Black cannot hold the game after this.} (21... Nxf4 $16 22. Red1 Nxh3+ 23. gxh3 (23. Kh1 Qh4 $17) 23... Qg5+ 24. Kh1 Qf6) 22. Bf2 {[%emt 0:02:46] This bishop pair is nice.} Qxf4 {[%emt 0:06:03]} 23. exd5 {[%emt 0:00:34]} Rxe1+ {[%emt 0:01:26]} 24. Qxe1 {[%emt 0:00:54]} Re8 {[%emt 0:03:22]} 25. Re2 {[%emt 0:00:34]} Rxe2 {[%emt 0:03:04]} 26. Qxe2 {[%emt 0:00:10] [#] Black must now prevent Qe7.} ({Weaker is} 26. Bxe2 Qe5 27. Qd2 cxd5 $18) 26... cxd5 {[%emt 0:00:36]} 27. Qe7 {[%emt 0:00:40] Threatening mate with Qd8+.} Qc1+ {[%emt 0:01:56]} 28. Kh2 {[%emt 0:00:13] White wants to mate with Qd8+.} Qc7+ {[%emt 0:00:03]} 29. Bg3 {[%emt 0:00:09]} Qc8 {[%emt 0:00:55]} 30. Bxd5 {[%emt 0:00:14]} h6 {[%emt 0:00:48]} 31. Qxf7+ {[%emt 0:00:22] White mates.} Kh8 {[%emt 0:00:07]} 32. Be5 {[%emt 0:00:20][%csl Ge5][%cal Rf7g7]} Qe8 {[%emt 0:00:24]} 33. Qxg7# {[%emt 0:00:18] Weighted Error Value: White=0.13 (very precise) /Black=0.53} 1-0